fUST/lending_fUST_20250306
["ID","MTS","AMOUNT","RATE_DAILY","PERIOD"]
[355529463,1741239034680,-500.0,0.00041095,120]
[355529464,1741239034691,-500.0,0.00041095,120]
[355529465,1741239034700,-500.0,0.00041095,120]
[355529466,1741239034710,-500.0,0.00041095,120]
[355529467,1741239034719,-1131.32,0.00041095,120]
[355529468,1741239034729,-359.02610874,0.00041095,120]
[355529469,1741239034739,-500.0,0.00041095,120]
[355529470,1741239034750,-500.0,0.00041095,120]
[355529471,1741239034759,-500.0,0.00041095,120]
[355529472,1741239034769,-534.78000823,0.00041095,120]
[355529473,1741239034779,-500.0,0.00041095,120]
[355529474,1741239034788,-542.73,0.00041095,120]
[355529475,1741239034798,-500.0,0.00041095,120]
[355529476,1741239034807,-1159.66,0.00041095,120]
[355529477,1741239034818,-500.0,0.00041095,120]
[355529478,1741239034827,-500.0,0.00041095,120]
[355529479,1741239034837,-500.0,0.00041095,120]
[355529480,1741239034847,-500.0,0.00041095,120]
[355529481,1741239034857,-500.0,0.00041095,120]
[355529482,1741239034866,-830.16,0.00041095,120]
[355529483,1741239034876,-633.00564381,0.00041095,120]
[355529484,1741239034885,-500.0,0.00041095,120]
[355529485,1741239034895,-500.0,0.00041095,120]
[355529486,1741239034904,-506.99,0.00041095,120]
[355529487,1741239034914,-500.0,0.00041095,120]
[355529488,1741239034924,-500.0,0.00041095,120]
[355529489,1741239034933,-500.0,0.00041095,120]
[355529490,1741239034943,-500.0,0.00041095,120]
[355529491,1741239034952,-513.62470438,0.00041095,120]
[355529492,1741239034962,-500.0,0.00041095,120]
[355529493,1741239034972,-500.0,0.00041095,120]
[355529494,1741239034984,-500.0,0.00041095,120]
[355529495,1741239034994,-517.02,0.00041095,120]
[355529496,1741239035007,-500.0,0.00041095,120]
[355529497,1741239035016,-500.0,0.00041095,120]
[355529498,1741239035027,-829.41,0.00041095,120]
[355529499,1741239035036,-500.0,0.00041095,120]
[355529500,1741239035046,-500.0,0.00041095,120]
[355529501,1741239035060,-500.0,0.00041095,120]
[355529502,1741239035073,-500.0,0.00041095,120]
[355529503,1741239035087,-500.0,0.00041095,120]
[355529504,1741239035096,-500.0,0.00041095,120]
[355529505,1741239035106,-500.0,0.00041095,120]
[355529506,1741239035116,-500.0,0.00041095,120]
[355529507,1741239035126,-500.0,0.00041095,120]
[355529508,1741239035135,-500.0,0.00041095,120]
[355529509,1741239035146,-507.20597843,0.00041095,120]
[355529510,1741239035155,-719.47,0.00041095,120]
[355529511,1741239035165,-761.45,0.00041095,120]
[355529512,1741239035174,-500.0,0.00041095,120]
[355529513,1741239035184,-500.0,0.00041095,120]
[355529514,1741239035194,-500.0,0.00041095,120]
[355529515,1741239035204,-500.0,0.00041095,120]
[355529516,1741239035215,-500.0,0.00041095,120]
[355529517,1741239035227,-500.0,0.00041095,120]
[355529518,1741239035236,-676.02,0.00041095,120]
[355529519,1741239035245,-1918.4,0.00041095,120]
[355529520,1741239035257,-504.95755554,0.00041095,120]
[355529521,1741239035267,-220.58647357,0.00041095,120]
[355529522,1741239035275,-500.0,0.00041095,120]
[355529523,1741239035287,-500.0,0.00041095,120]
[355529524,1741239035297,-1213.3,0.00041095,120]
[355529525,1741239035307,-500.0,0.00041095,120]
[355529526,1741239035317,-500.0,0.00041095,120]
[355529527,1741239035326,-500.0,0.00041095,120]
[355529528,1741239035336,-500.0,0.00041095,120]
[355529529,1741239035345,-967.83,0.00041095,120]
[355529530,1741239035355,-500.0,0.00041095,120]
[355529531,1741239035365,-500.0,0.00041095,120]
[355529532,1741239035375,-500.0,0.00041095,120]
[355529533,1741239035386,-500.0,0.00041095,120]
[355529534,1741239035395,-2182.13,0.00041095,120]
[355529535,1741239035405,-500.0,0.00041095,120]
[355529536,1741239035415,-1577.5,0.00041095,120]
[355529537,1741239035424,-500.0,0.00041095,120]
[355529538,1741239035434,-525.81,0.00041095,120]
[355529539,1741239035443,-500.0,0.00041095,120]
[355529540,1741239035453,-530.60635586,0.00041095,120]
[355529541,1741239035462,-581.32,0.00041095,120]
[355529542,1741239035471,-500.0,0.00041095,120]
[355529543,1741239035481,-669.31,0.00041095,120]
[355529544,1741239035491,-500.0,0.00041095,120]
[355529545,1741239035501,-861.14,0.00041095,120]
[355529546,1741239035510,-500.0,0.00041095,120]
[355529547,1741239035519,-656.33,0.00041095,120]
[355529548,1741239035528,-500.0,0.00041095,120]
[355529549,1741239035538,-500.0,0.00041095,120]
[355529550,1741239035548,-500.0,0.00041095,120]
[355529551,1741239035558,-500.0,0.00041095,120]
[355529552,1741239035568,-500.0,0.00041095,120]
[355529553,1741239035578,-500.0,0.00041095,120]
[355529554,1741239035587,-500.0,0.00041095,120]
[355529555,1741239035597,-500.0,0.00041095,120]
[355529556,1741239035607,-759.22,0.00041095,120]
[355529557,1741239035616,-500.0,0.00041095,120]
[355529558,1741239035626,-730.03,0.00041095,120]
[355529559,1741239035636,-500.0,0.00041095,120]
[355529560,1741239035647,-500.0,0.00041095,120]
[355529561,1741239035657,-1408.49,0.00041095,120]
[355529562,1741239035667,-500.0,0.00041095,120]
[355529563,1741239035677,-500.0,0.00041095,120]
[355529564,1741239035687,-500.0,0.00041095,120]
[355529565,1741239035697,-500.0,0.00041095,120]
[355529566,1741239035706,-500.0,0.00041095,120]
[355529567,1741239035716,-500.0,0.00041095,120]
[355529568,1741239035725,-500.0,0.00041095,120]
[355529569,1741239035735,-500.0,0.00041095,120]
[355529570,1741239035744,-500.0,0.00041095,120]
[355529571,1741239035755,-500.0,0.00041095,120]
[355529572,1741239035765,-500.0,0.00041095,120]
[355529573,1741239035774,-500.0,0.00041095,120]
[355529574,1741239035784,-1082.09,0.00041095,120]
[355529575,1741239035794,-500.0,0.00041095,120]
[355529576,1741239035803,-2619.79,0.00041095,120]
[355529577,1741239035813,-500.0,0.00041095,120]
[355529578,1741239035823,-500.0,0.00041095,120]
[355529579,1741239035832,-500.0,0.00041095,120]
[355529580,1741239035843,-500.0,0.00041095,120]
[355529581,1741239035852,-500.0,0.00041095,120]
[355529582,1741239035862,-500.0,0.00041095,120]
[355529583,1741239035871,-500.0,0.00041095,120]
[355529584,1741239035881,-500.0,0.00041095,120]
[355529585,1741239035891,-500.0,0.00041095,120]
[355529586,1741239035901,-2452.53,0.00041095,120]
[355529587,1741239035911,-500.0,0.00041095,120]
[355529588,1741239035920,-500.0,0.00041095,120]
[355529589,1741239035930,-500.0,0.00041095,120]
[355529590,1741239035940,-500.0,0.00041095,120]
[355529591,1741239035950,-500.0,0.00041095,120]
[355529592,1741239035960,-1086.58,0.00041095,120]
[355529593,1741239035970,-500.0,0.00041095,120]
[355529594,1741239035984,-2745.38,0.00041095,120]
[355529595,1741239035994,-500.0,0.00041095,120]
[355529596,1741239036004,-655.73,0.00041095,120]
[355529597,1741239036013,-500.0,0.00041095,120]
[355529598,1741239036024,-500.0,0.00041095,120]
[355529599,1741239036034,-500.0,0.00041095,120]
[355529600,1741239036044,-500.0,0.00041095,120]
[355529601,1741239036055,-1938.58,0.00041095,120]
[355529602,1741239036067,-500.0,0.00041095,120]
[355529603,1741239036077,-500.0,0.00041095,120]
[355529604,1741239036087,-500.0,0.00041095,120]
[355529605,1741239036096,-500.0,0.00041095,120]
[355529606,1741239036106,-500.0,0.00041095,120]
[355529607,1741239036116,-1030.13,0.00041095,120]
[355529608,1741239036126,-500.0,0.00041095,120]
[355529609,1741239036135,-500.0,0.00041095,120]
[355529610,1741239036144,-1287.83,0.00041095,120]
[355529611,1741239036154,-500.0,0.00041095,120]
[355529612,1741239036164,-500.0,0.00041095,120]
[355529613,1741239036173,-500.0,0.00041095,120]
[355529614,1741239036183,-500.0,0.00041095,120]
[355529615,1741239036192,-500.0,0.00041095,120]
[355529616,1741239036202,-500.0,0.00041095,120]
[355529617,1741239036212,-500.0,0.00041095,120]
[355529618,1741239036221,-500.0,0.00041095,120]
[355529619,1741239036231,-500.0,0.00041095,120]
[355529620,1741239036241,-500.0,0.00041095,120]
[355529621,1741239036250,-500.0,0.00041095,120]
[355529622,1741239036261,-500.0,0.00041095,120]
[355529623,1741239036271,-500.0,0.00041095,120]
[355529624,1741239036281,-1162.3,0.00041095,120]
[355529625,1741239036291,-500.0,0.00041095,120]
[355529626,1741239036300,-500.0,0.00041095,120]
[355529627,1741239036310,-500.0,0.00041095,120]
[355529628,1741239036320,-500.0,0.00041095,120]
[355529629,1741239036329,-500.0,0.00041095,120]
[355529630,1741239036339,-500.0,0.00041095,120]
[355529631,1741239036349,-500.0,0.00041095,120]
[355529632,1741239036358,-500.0,0.00041095,120]
[355529633,1741239036368,-500.0,0.00041095,120]
[355529634,1741239036378,-2574.58,0.00041095,120]
[355529635,1741239036388,-500.0,0.00041095,120]
[355529636,1741239036398,-511.7,0.00041095,120]
[355529637,1741239036408,-500.0,0.00041095,120]
[355529638,1741239036418,-530.91501265,0.00041095,120]
[355529639,1741239036427,-1970.76,0.00041095,120]
[355529640,1741239036437,-500.0,0.00041095,120]
[355529641,1741239036447,-577.31,0.00041095,120]
[355529642,1741239036457,-609.45951741,0.00041095,120]
[355529643,1741239036467,-500.0,0.00041095,120]
[355529644,1741239036477,-626.25,0.00041095,120]
[355529645,1741239036487,-500.0,0.00041095,120]
[355529646,1741239036496,-500.0,0.00041095,120]
[355529647,1741239036507,-500.0,0.00041095,120]
[355529648,1741239036518,-500.0,0.00041095,120]
[355529649,1741239036528,-335.7766782,0.00041095,120]
[355529650,1741239036538,-973.38,0.00041095,120]
[355529651,1741239036548,-1325.02,0.00041095,120]
[355529652,1741239036557,-749.92,0.00041095,120]
[355529653,1741239036568,-500.0,0.00041095,120]
[355529654,1741239036577,-500.0,0.00041095,120]
[355529655,1741239036587,-500.0,0.00041095,120]
[355529656,1741239036597,-500.0,0.00041095,120]
[355529657,1741239036606,-500.0,0.00041095,120]
[355529658,1741239036616,-500.0,0.00041095,120]
[355529659,1741239036626,-500.0,0.00041095,120]
[355529660,1741239036636,-2524.76,0.00041095,120]
[355529661,1741239036646,-500.0,0.00041095,120]
[355529662,1741239036656,-500.0,0.00041095,120]
[355529663,1741239036666,-500.0,0.00041095,120]
[355529664,1741239036676,-1523.28,0.00041095,120]
[355529665,1741239036686,-512.92,0.00041095,120]
[355529666,1741239036696,-2787.7,0.00041095,120]
[355529667,1741239036706,-500.0,0.00041095,120]
[355529668,1741239036715,-500.0,0.00041095,120]
[355529669,1741239036725,-500.0,0.00041095,120]
[355529670,1741239036735,-500.0,0.00041095,120]
[355529671,1741239036745,-500.0,0.00041095,120]
[355529672,1741239036755,-500.0,0.00041095,120]
[355529673,1741239036765,-500.0,0.00041095,120]
[355529674,1741239036774,-200.13327288,0.00041095,120]
[355529675,1741239036784,-500.0,0.00041095,120]
[355529676,1741239036794,-717.12,0.00041095,120]
[355529677,1741239036804,-500.0,0.00041095,120]
[355529678,1741239036813,-500.0,0.00041095,120]
[355529679,1741239036823,-688.21,0.00041095,120]
[355529680,1741239036833,-550.22,0.00041095,120]
[355529681,1741239036842,-500.0,0.00041095,120]
[355529682,1741239036852,-500.0,0.00041095,120]
[355529683,1741239036862,-1478.52,0.00041095,120]
[355529684,1741239036872,-3342.06,0.00041095,120]
[355529685,1741239036882,-500.0,0.00041095,120]
[355529686,1741239036892,-1159.11,0.00041095,120]
[355529687,1741239036901,-500.0,0.00041095,120]
[355529688,1741239036911,-2562.22,0.00041095,120]
[355529689,1741239036921,-834.01,0.00041095,120]
[355529690,1741239036930,-500.0,0.00041095,120]
[355529691,1741239036940,-1635.97,0.00041095,120]
[355529692,1741239036950,-500.0,0.00041095,120]
[355529693,1741239036959,-500.0,0.00041095,120]
[355529694,1741239036969,-500.0,0.00041095,120]
[355529695,1741239036979,-701.09,0.00041095,120]
[355529696,1741239036992,-3484.54,0.00041095,120]
[355529697,1741239037002,-500.0,0.00041095,120]
[355529698,1741239037013,-500.0,0.00041095,120]
[355529699,1741239037023,-169.95792687,0.00041095,120]
[355529700,1741239037033,-500.0,0.00041095,120]
[355529701,1741239037043,-500.0,0.00041095,120]
[355529702,1741239037053,-2051.48,0.00041095,120]
[355529703,1741239037064,-4773.83,0.00041095,120]
[355529704,1741239037074,-500.0,0.00041095,120]
[355529705,1741239037084,-500.0,0.00041095,120]
[355529706,1741239037094,-500.0,0.00041095,120]
[355529707,1741239037103,-500.0,0.00041095,120]
[355529708,1741239037113,-847.4,0.00041095,120]
[355529709,1741239037123,-500.0,0.00041095,120]
[355529710,1741239037133,-500.0,0.00041095,120]
[355529713,1741239037142,-707.36,0.00041095,120]
[355529719,1741239037152,-500.0,0.00041095,120]
[355529720,1741239037342,-500.0,0.00041095,120]
[355529721,1741239037352,-500.0,0.00041095,120]
[355529722,1741239037362,-5402.06,0.00041095,120]
[355529723,1741239037371,-500.0,0.00041095,120]
[355529724,1741239037381,-521.04791957,0.00041095,120]
[355529725,1741239037391,-623.42,0.00041095,120]
[355529726,1741239037400,-500.0,0.00041095,120]
[355529727,1741239037410,-500.0,0.00041095,120]
[355529728,1741239037420,-981.99,0.00041095,120]
[355529729,1741239037429,-500.0,0.00041095,120]
[355529730,1741239037438,-500.0,0.00041095,120]
[355529731,1741239037447,-500.0,0.00041095,120]
[355529732,1741239037457,-500.0,0.00041095,120]
[355529733,1741239037467,-753.8,0.00041095,120]
[355529734,1741239037477,-446.69758762,0.00041095,120]
[355529735,1741239037487,-500.0,0.00041095,120]
[355529736,1741239037497,-500.0,0.00041095,120]
[355529737,1741239037508,-500.0,0.00041095,120]
[355529738,1741239037517,-1743.51,0.00041095,120]
[355529739,1741239037527,-500.0,0.00041095,120]
[355529740,1741239037538,-618.94,0.00041095,2]
[355529741,1741239037547,-1101.09,0.00041095,120]
[355529743,1741239037558,-500.0,0.00041095,120]
[355529745,1741239037568,-500.0,0.00041095,120]
[355529747,1741239037578,-780.79,0.00041095,120]
[355529749,1741239037589,-142638.12,0.00041095,7]
[355529751,1741239037599,-3856.18,0.00041095,120]
[355529753,1741239037609,-500.0,0.00041095,120]
[355529755,1741239037619,-570.73,0.00041095,120]
[355529757,1741239037629,-1705.87,0.00041095,120]
[355529759,1741239037639,-500.0,0.00041095,120]
[355529761,1741239037649,-500.0,0.00041095,120]
[355529763,1741239037659,-2866.14,0.00041095,120]
[355529764,1741239037669,-1056.31,0.00041095,120]
[355529765,1741239037680,-500.0,0.00041095,120]
[355529766,1741239037691,-1813.2,0.00041095,120]
[355529767,1741239037700,-661.47,0.00041095,120]
[355529768,1741239037710,-626.93,0.00041095,120]
[355529770,1741239037720,-1299.25,0.00041095,120]
[355529772,1741239037730,-4643.45,0.00041095,120]
[355529773,1741239037740,-673.88,0.00041095,120]
[355529774,1741239037750,-15178.91,0.00041095,120]
[355529775,1741239037760,-500.0,0.00041095,120]
[355529776,1741239037769,-1838.24,0.00041095,120]
[355529777,1741239037779,-500.0,0.00041095,120]
[355529778,1741239037789,-498.14310405,0.00041095,120]
[355529779,1741239037799,-18252.39,0.00041095,120]
[355529780,1741239037809,-500.0,0.00041095,120]
[355529781,1741239037818,-1254.03,0.00041095,120]
[355529782,1741239037828,-500.0,0.00041095,120]
[355529783,1741239037838,-748.23,0.00041095,120]
[355529784,1741239037848,-500.0,0.00041095,120]
[355529785,1741239037858,-500.0,0.00041095,120]
[355529786,1741239037868,-500.0,0.00041095,120]
[355529787,1741239037878,-500.0,0.00041095,120]
[355529788,1741239037888,-2099.26,0.00041095,120]
[355529789,1741239037897,-500.0,0.00041095,120]
[355529790,1741239037908,-833.97,0.00041095,120]
[355529791,1741239037917,-500.0,0.00041095,120]
[355529792,1741239037927,-2730.68,0.00041095,120]
[355529793,1741239037936,-888.68,0.00041095,120]
[355529794,1741239037952,-500.0,0.00041095,120]
[355529795,1741239037962,-1002.05,0.00041095,120]
[355529796,1741239037971,-500.0,0.00041095,120]
[355529797,1741239037980,-500.0,0.00041095,120]
[355529798,1741239037992,-619.88,0.00041095,120]
[355529799,1741239038002,-500.0,0.00041095,120]
[355529800,1741239038010,-14536.41,0.00041095,30]
[355529801,1741239038018,-500.0,0.00041095,120]
[355529802,1741239038027,-1480.79,0.00041095,120]
[355529803,1741239038038,-500.0,0.00041095,120]
[355529804,1741239038047,-531.6,0.00041095,120]
[355529805,1741239038056,-500.0,0.00041095,120]
[355529806,1741239038064,-500.0,0.00041095,120]
[355529807,1741239038073,-1108.1,0.00041095,120]
[355529808,1741239038081,-500.0,0.00041095,120]
[355529809,1741239038090,-500.0,0.00041095,120]
[355529810,1741239038098,-1331.41,0.00041095,120]
[355529811,1741239038106,-500.0,0.00041095,120]
[355529812,1741239038115,-622.41,0.00041095,120]
[355529813,1741239038123,-500.0,0.00041095,120]
[355529814,1741239038131,-500.0,0.00041095,120]
[355529815,1741239038139,-517.57,0.00041095,120]
[355529816,1741239038148,-5884.22,0.00041095,14]
[355529817,1741239038156,-500.0,0.00041095,120]
[355529818,1741239038164,-500.0,0.00041095,120]
[355529819,1741239038173,-852.76,0.00041095,120]
[355529820,1741239038182,-1628.72,0.00041095,120]
[355529821,1741239038190,-999.0,0.00041095,120]
[355529822,1741239038198,-1286.27,0.00041095,120]
[355529823,1741239038207,-500.0,0.00041095,120]
[355529824,1741239038216,-500.0,0.00041095,120]
[355529825,1741239038224,-500.0,0.00041095,120]
[355529826,1741239038233,-817.49,0.00041095,120]
[355529827,1741239038242,-500.0,0.00041095,120]
[355529828,1741239038251,-653.49,0.00041095,120]
[355529829,1741239038260,-500.0,0.00041095,120]
[355529830,1741239038268,-500.0,0.00041095,120]
[355529831,1741239038277,-518.3082423,0.00041095,120]
[355529832,1741239038286,-6897.7,0.00041095,120]
[355529833,1741239038294,-624.24,0.00041095,120]
[355529834,1741239038302,-920.46,0.00041095,120]
[355529835,1741239038311,-9402.25,0.00041095,120]
[355529836,1741239038319,-500.0,0.00041095,120]
[355529837,1741239038328,-773.3,0.00041095,120]
[355529838,1741239038336,-473.7314439,0.00041095,120]
[355529839,1741239038345,-500.0,0.00041095,120]
[355529840,1741239038353,-500.0,0.00041095,120]
[355529841,1741239038361,-4486.06,0.00041095,120]
[355529842,1741239038370,-500.0,0.00041095,120]
[355529843,1741239038378,-500.0,0.00041095,120]
[355529844,1741239038387,-6981.24,0.00041095,120]
[355529845,1741239038396,-2422.56,0.00041095,120]
[355529846,1741239038404,-500.0,0.00041095,120]
[355529847,1741239038425,-500.0,0.00041095,120]
[355529848,1741239038436,-500.0,0.00041095,14]
[355529849,1741239038446,-500.0,0.00041095,120]
[355529850,1741239038455,-500.0,0.00041095,120]
[355529851,1741239038465,-1727.94,0.00041095,120]
[355529852,1741239038475,-531.78,0.00041095,120]
[355529853,1741239038485,-500.0,0.00041095,120]
[355529854,1741239038495,-2424.04,0.00041095,120]
[355529855,1741239038505,-1187.15,0.00041095,120]
[355529856,1741239038515,-507.77971639,0.00041095,120]
[355529857,1741239038525,-510.25,0.00041095,120]
[355529858,1741239038538,-1998.38,0.00041095,120]
[355529859,1741239038548,-500.0,0.00041095,120]
[355529860,1741239038558,-12360.94,0.00041095,120]
[355529861,1741239038569,-861.93,0.00041095,120]
[355529862,1741239038579,-500.0,0.00041095,120]
[355529863,1741239038588,-500.0,0.00041095,30]
[355529864,1741239038598,-500.0,0.00041095,120]
[355529865,1741239038609,-500.0,0.00041095,120]
[355529866,1741239038619,-500.0,0.00041095,120]
[355529867,1741239038630,-1401.36,0.00041095,120]
[355529868,1741239038641,-500.0,0.00041095,120]
[355529869,1741239038651,-201.49690882,0.00041095,120]
[355529870,1741239038661,-1342.15,0.00041095,120]
[355529871,1741239038671,-710.09,0.00041095,120]
[355529872,1741239038682,-500.0,0.00041095,120]
[355529873,1741239038692,-500.0,0.00041095,120]
[355529874,1741239038702,-500.0,0.00041095,120]
[355529875,1741239038714,-500.0,0.00041095,120]
[355529876,1741239038727,-1265.84,0.00041095,120]
[355529877,1741239038739,-500.0,0.00041095,120]
[355529878,1741239038751,-500.0,0.00041095,120]
[355529879,1741239038763,-1364.83,0.00041095,120]
[355529880,1741239038775,-500.0,0.00041095,120]
[355529881,1741239038785,-3851.48,0.00041095,120]
[355529882,1741239038797,-3882.89,0.00041095,120]
[355529883,1741239038808,-500.0,0.00041095,120]
[355529884,1741239038819,-500.0,0.00041095,120]
[355529885,1741239038830,-500.0,0.00041095,120]
[355529886,1741239038841,-4414.14,0.00041095,120]
[355529887,1741239038851,-500.0,0.00041095,120]
[355529888,1741239038861,-500.0,0.00041095,120]
[355529889,1741239038872,-500.0,0.00041095,120]
[355529890,1741239038883,-500.0,0.00041095,120]
[355529891,1741239038893,-500.0,0.00041095,120]
[355529892,1741239038904,-795.7,0.00041095,120]
[355529893,1741239038914,-7182.69,0.00041095,120]
[355529894,1741239038924,-780.94,0.00041095,120]
[355529895,1741239038934,-1001.67,0.00041095,120]
[355529896,1741239038941,-500.0,0.00041095,120]
[355529897,1741239038949,-500.0,0.00041095,120]
[355529898,1741239038956,-500.0,0.00041095,120]
[355529899,1741239038964,-506.70052754,0.00041095,120]
[355529900,1741239038973,-10404.38,0.00041095,120]
[355529901,1741239038986,-208.77041829,0.00041095,120]
[355529902,1741239038995,-500.0,0.00041095,120]
[355529903,1741239039006,-500.0,0.00041095,120]
[355529904,1741239039015,-500.0,0.00041095,120]
[355529905,1741239039025,-500.0,0.00041095,120]
[355529906,1741239039034,-14636.71,0.00041095,120]
[355529907,1741239039044,-500.0,0.00041095,120]
[355529908,1741239039055,-500.0,0.00041095,2]
[355529909,1741239039066,-500.0,0.00041095,120]
[355529910,1741239039076,-500.0,0.00041095,120]
[355529911,1741239039086,-500.0,0.00041095,120]
[355529912,1741239039096,-500.0,0.00041095,120]
[355529913,1741239039106,-500.0,0.00041095,120]
[355529914,1741239039119,-500.0,0.00041095,120]
[355529915,1741239039128,-500.0,0.00041095,120]
[355529916,1741239039138,-500.0,0.00041095,120]
[355529917,1741239039148,-1569.03,0.00041095,120]
[355529919,1741239039158,-500.0,0.00041095,120]
[355529921,1741239039168,-500.0,0.00041095,120]
[355529922,1741239039178,-500.0,0.00041095,120]
[355529923,1741239039188,-500.0,0.00041095,2]
[355529924,1741239039198,-500.0,0.00041095,120]
[355529925,1741239039208,-500.0,0.00041095,120]
[355529926,1741239039218,-500.0,0.00041095,21]
[355529927,1741239039228,-500.0,0.00041095,120]
[355529928,1741239039238,-1612.17,0.00041095,10]
[355529929,1741239039248,-504.95,0.00041095,30]
[355529930,1741239039259,-500.0,0.00041095,120]
[355529931,1741239039269,-754.57,0.00041095,120]
[355529932,1741239039279,-3222.98,0.00041095,120]
[355529933,1741239039289,-524.48,0.00041095,120]
[355529935,1741239039300,-500.0,0.00041095,120]
[355529936,1741239039310,-5963.86,0.00041095,120]
[355529940,1741239039320,-2042.01,0.00041095,120]
[355529941,1741239039330,-558.334779,0.00041096,30]
[355529943,1741239039340,-611.85222695,0.00041111,2]
[355529945,1741239039350,-247.89886646,0.00041118,120]
[355529947,1741239039360,-212.356582,0.00041211,2]
[355529948,1741239039370,-1000.0,0.0004126,30]
[355529949,1741239039380,-1000.0,0.0004126,30]
[355529950,1741239039390,-1000.0,0.0004126,30]
[355529951,1741239039399,-1000.0,0.0004126,30]
[355529952,1741239039410,-1000.0,0.0004126,30]
[355529953,1741239039420,-1000.0,0.0004126,30]
[355529955,1741239039430,-1000.0,0.0004126,30]
[355529957,1741239039440,-1000.0,0.0004126,30]
[355529958,1741239039450,-1000.0,0.0004126,30]
[355529960,1741239039459,-1000.0,0.0004126,30]
[355529962,1741239039469,-1000.0,0.0004126,30]
[355529964,1741239039479,-1000.0,0.0004126,30]
[355529966,1741239039488,-1000.0,0.0004126,30]
[355529968,1741239039498,-261.1198165,0.0004126,30]
[355529970,1741239039510,-1333.5283788,0.00041347,4]
[355529972,1741239039520,-1000.0,0.00041367,120]
[355529974,1741239039530,-166.35796391,0.00041368,30]
[355529976,1741239039540,-500.0,0.00041369,30]
[355529978,1741239039551,-625.70408151,0.00041369,120]
[355529980,1741239039560,-500.0,0.00041369,120]
[355529982,1741239039570,-500.0,0.00041369,120]
[355529984,1741239039580,-767.07,0.00041369,120]
[355529986,1741239039590,-500.0,0.00041369,120]
[355529988,1741239039600,-500.0,0.00041369,120]
[355529990,1741239039610,-500.0,0.00041369,120]
[355529992,1741239039620,-500.0,0.00041369,120]
[355529994,1741239039630,-500.0,0.00041369,120]
[355529996,1741239039640,-500.0,0.00041369,120]
[355529998,1741239039650,-512.14316996,0.00041369,120]
[355530000,1741239039660,-500.0,0.00041369,120]
[355530002,1741239039670,-780.28,0.00041369,120]
[355530004,1741239039680,-200.0,0.00041369,7]
[355530006,1741239039690,-500.0,0.00041369,120]
[355530008,1741239039700,-500.0,0.00041369,120]
[355530010,1741239039710,-500.0,0.00041369,120]
[355530019,1741239039720,-541.1511901,0.00041369,120]
[355530020,1741239039800,-500.0,0.00041369,120]
[355530021,1741239039810,-500.0,0.00041369,120]
[355530022,1741239039820,-500.0,0.00041369,120]
[355530023,1741239039830,-500.0,0.00041369,120]
[355530024,1741239039840,-500.0,0.00041369,120]
[355530025,1741239039850,-500.0,0.00041369,120]
[355530026,1741239039859,-500.0,0.00041369,120]
[355530028,1741239039869,-500.0,0.00041369,120]